[Event "1er Tournoi de GM du Barreau de Paris"]
[Site "Paris, France"]
[Date "2019.12.19"]
[Round "7.4"]
[White "RAKOTOMAHARO, Fy Antenaina"]
[Black "DI NICOLANTONIO, Lucas"]
[Result "0-1"]
[TimeControl "1h30+30s\cp"]
[WhiteTitle "IM"]
[BlackTitle "IM"]
[WhiteElo "2438"]
[BlackElo "2408"]

1. e4 {[%clk 01:30:56]} {[%emt 00:00:03]} c5 {[%clk 01:30:47]} {[%emt
00:00:13]} 2. Nf3 {[%clk 01:30:37]} {[%emt 00:00:49]} d6 {[%clk 01:30:55]}
{[%emt 00:00:22]} 3. d4 {[%clk 01:28:52]} {[%emt 00:02:15]} cxd4 {[%clk
01:31:12]} {[%emt 00:00:13]} 4. Nxd4 {[%clk 01:29:17]} {[%emt 00:00:05]} Nf6
{[%clk 01:31:36]} {[%emt 00:00:06]} 5. Nc3 {[%clk 01:29:44]} {[%emt 00:00:03]}
a6 {[%clk 01:32:00]} {[%emt 00:00:06]} 6. g3 {[%clk 01:26:37]} {[%emt
00:03:37]} e5 {[%clk 01:32:04]} {[%emt 00:00:25]} 7. Nb3 {[%clk 01:26:47]}
{[%emt 00:00:21]} Be7 {[%clk 01:31:35]} {[%emt 00:00:58]} 8. Bg5 {[%clk
01:27:00]} {[%emt 00:00:17]} Be6 {[%clk 01:29:35]} {[%emt 00:02:30]} 9. Bxf6
{[%clk 01:27:00]} {[%emt 00:00:30]} Bxf6 {[%clk 01:29:56]} {[%emt 00:00:08]} 10.
h4 {[%clk 01:26:43]} {[%emt 00:00:48]} O-O {[%clk 01:28:31]} {[%emt 00:01:55]}
11. Qd2 {[%clk 01:26:09]} {[%emt 00:01:05]} a5 {[%clk 01:27:21]} {[%emt
00:01:40]} 12. a4 {[%clk 00:47:28]} {[%emt 00:39:11]} Na6 {[%clk 01:26:09]}
{[%emt 00:01:41]} 13. O-O-O {[%clk 00:41:12]} {[%emt 00:06:46]} Qb6 {[%clk
01:23:50]} {[%emt 00:02:51]} 14. Bb5 {[%clk 00:25:53]} {[%emt 00:15:49]} Rfd8
{[%clk 01:18:56]} {[%emt 00:05:24]} 15. Rhe1 {[%clk 00:14:59]} {[%emt
00:11:24]} Nb4 {[%clk 01:08:48]} {[%emt 00:10:38]} 16. Qe3 {[%clk 00:15:05]}
{[%emt 00:00:25]} Qc7 {[%clk 01:08:27]} {[%emt 00:00:51]} 17. Kb1 {[%clk
00:13:05]} {[%emt 00:02:30]} Rac8 {[%clk 01:06:20]} {[%emt 00:02:37]} 18. Qa7
{[%clk 00:07:40]} {[%emt 00:05:55]} d5 {[%clk 00:55:33]} {[%emt 00:11:17]} 19.
exd5 {[%clk 00:06:28]} {[%emt 00:01:42]} Nxd5 {[%clk 00:55:03]} {[%emt
00:00:59]} 20. Rxd5 {[%clk 00:03:59]} {[%emt 00:03:00]} Bxd5 {[%clk 00:54:22]}
{[%emt 00:01:11]} 21. Qxa5 {[%clk 00:04:18]} {[%emt 00:00:12]} b6 {[%clk
00:50:26]} {[%emt 00:04:27]} 22. Qb4 {[%clk 00:04:29]} {[%emt 00:00:19]} e4
{[%clk 00:50:42]} {[%emt 00:00:14]} 23. Re2 {[%clk 00:01:19]} {[%emt 00:03:41]}
Bxc3 {[%clk 00:37:44]} {[%emt 00:13:27]} 24. bxc3 {[%clk 00:01:45]} {[%emt
00:00:04]} Qxc3 {[%clk 00:34:27]} {[%emt 00:03:47]} 25. Qxc3 {[%clk 00:02:04]}
{[%emt 00:00:11]} Rxc3 {[%clk 00:34:53]} {[%emt 00:00:04]} 26. Kb2 {[%clk
00:00:45]} {[%emt 00:01:49]} Rcc8 {[%clk 00:35:03]} {[%emt 00:00:20]} 27. g4
{[%clk 00:00:38]} {[%emt 00:00:37]} f6 {[%clk 00:34:35]} {[%emt 00:00:58]} 28.
Nd2 {[%clk 00:00:37]} {[%emt 00:00:31]} Be6 {[%clk 00:32:59]} {[%emt 00:02:06]}
29. Rxe4 {[%clk 00:00:49]} {[%emt 00:00:18]} Rxd2 {[%clk 00:33:20]} {[%emt
00:00:09]} 30. Rxe6 {[%clk 00:01:17]} {[%emt 00:00:02]} Rdxc2+ {[%clk
00:26:09]} {[%emt 00:07:41]} 31. Kb3 {[%clk 00:01:39]} {[%emt 00:00:08]} Rxf2
{[%clk 00:26:30]} {[%emt 00:00:07]} 32. Rxb6 {[%clk 00:01:57]} {[%emt
00:00:13]} Rf3+ {[%clk 00:26:42]} {[%emt 00:00:18]} 33. Kb4 {[%clk 00:00:34]}
{[%emt 00:01:54]} Rf4+ {[%clk 00:27:08]} {[%emt 00:00:04]} 34. Ka5 {[%clk
00:00:59]} {[%emt 00:00:05]} Rxg4 {[%clk 00:27:21]} {[%emt 00:00:16]} 35. Bd7
{[%clk 00:01:15]} {[%emt 00:00:14]} Ra8+ {[%clk 00:26:20]} {[%emt 00:01:31]} 36.
Ra6 {[%clk 00:01:39]} {[%emt 00:00:06]} Rxa6+ {[%clk 00:26:46]} {[%emt
00:00:04]} 37. Kxa6 {[%clk 00:02:06]} {[%emt 00:00:03]} Rxh4 {[%clk 00:27:10]}
{[%emt 00:00:06]} 38. a5 {[%clk 00:02:30]} {[%emt 00:00:07]} Kf8 {[%clk
00:22:23]} {[%emt 00:05:16]} 39. Kb5 {[%clk 00:02:14]} {[%emt 00:00:46]} Rh1
{[%clk 00:21:10]} {[%emt 00:01:43]} 40. a6 {[%clk 00:02:12]} {[%emt 00:00:32]}
Ke7 {[%clk 00:21:01]} {[%emt 00:00:38]} 41. Bc6 {[%clk 00:00:35]} {[%emt
00:02:08]} Ra1 {[%clk 00:21:25]} {[%emt 00:00:06]} 42. Kb6 {[%clk 00:00:58]}
{[%emt 00:00:07]} Kd6 {[%clk 00:21:45]} {[%emt 00:00:09]} 43. Bb5 {[%clk
00:01:25]} {[%emt 00:00:03]} Ke5 {[%clk 00:21:39]} {[%emt 00:00:35]} 44. a7
{[%clk 00:01:39]} {[%emt 00:00:17]} Rxa7 {[%clk 00:22:05]} {[%emt 00:00:05]} 45.
Kxa7 {[%clk 00:02:06]} {[%emt 00:00:03]} Kf4 {[%clk 00:21:09]} {[%emt
00:01:25]} 46. Kb6 {[%clk 00:02:20]} {[%emt 00:00:16]} Kg3 {[%clk 00:21:34]}
{[%emt 00:00:04]} 47. Kc5 {[%clk 00:02:40]} {[%emt 00:00:10]} h5 {[%clk
00:21:32]} {[%emt 00:00:32]} 48. Kd4 {[%clk 00:02:45]} {[%emt 00:00:24]} h4
{[%clk 00:20:59]} {[%emt 00:01:03]} 49. Ke3 {[%clk 00:02:28]} {[%emt 00:00:48]}
h3 {[%clk 00:21:23]} {[%emt 00:00:06]} 50. Bc6 {[%clk 00:02:42]} {[%emt
00:00:17]} f5 {[%clk 00:21:47]} {[%emt 00:00:05]} 51. Ke2 {[%clk 00:02:49]}
{[%emt 00:00:23]} f4 {[%clk 00:22:09]} {[%emt 00:00:08]} 52. Kf1 {[%clk
00:03:02]} {[%emt 00:00:17]} h2 {[%clk 00:21:10]} {[%emt 00:01:29]} 53. Bh1
{[%clk 00:03:23]} {[%emt 00:00:08]} f3 {[%clk 00:21:27]} {[%emt 00:00:13]} 54.
Ke1 {[%clk 00:03:38]} {[%emt 00:00:15]} g5 {[%clk 00:21:51]} {[%emt 00:00:06]}
55. Kf1 {[%clk 00:03:27]} {[%emt 00:00:41]} g4 {[%clk 00:22:16]} {[%emt
00:00:05]} 0-1

[Event "1er Tournoi de GM du Barreau de Paris"]
[Site "Paris, France"]
[Date "2019.12.19"]
[Round "7.5"]
[White "SOCHACKI, Wojtek"]
[Black "MOUHAMAD, Joachim"]
[Result "1-0"]
[TimeControl "1h30+30s\cp"]
[WhiteTitle "IM"]
[BlackTitle "FM"]
[WhiteElo "2320"]
[BlackElo "2293"]

1. Nf3 {[%clk 01:30:55]} {[%emt 00:00:04]} Nf6 {[%clk 01:30:45]} {[%emt
00:00:15]} 2. c4 {[%clk 01:31:20]} {[%emt 00:00:05]} g6 {[%clk 01:31:09]}
{[%emt 00:00:06]} 3. b3 {[%clk 01:31:36]} {[%emt 00:00:15]} Bg7 {[%clk
01:31:33]} {[%emt 00:00:05]} 4. Bb2 {[%clk 01:32:02]} {[%emt 00:00:04]} O-O
{[%clk 01:31:56]} {[%emt 00:00:07]} 5. g3 {[%clk 01:32:02]} {[%emt 00:00:30]}
c5 {[%clk 01:32:05]} {[%emt 00:00:21]} 6. Bg2 {[%clk 01:31:50]} {[%emt
00:00:42]} Nc6 {[%clk 01:32:26]} {[%emt 00:00:09]} 7. O-O {[%clk 01:31:29]}
{[%emt 00:00:51]} d6 {[%clk 01:27:52]} {[%emt 00:05:04]} 8. d4 {[%clk
01:31:25]} {[%emt 00:00:34]} Ne4 {[%clk 01:26:54]} {[%emt 00:01:28]} 9. h3
{[%clk 01:28:55]} {[%emt 00:03:00]} Rb8 {[%clk 01:25:23]} {[%emt 00:02:01]} 10.
Nbd2 {[%clk 01:23:40]} {[%emt 00:05:45]} Nxd2 {[%clk 01:25:24]} {[%emt
00:00:29]} 11. Qxd2 {[%clk 01:24:08]} {[%emt 00:00:02]} cxd4 {[%clk 01:25:17]}
{[%emt 00:00:36]} 12. Nxd4 {[%clk 01:23:58]} {[%emt 00:00:40]} Nxd4 {[%clk
01:25:18]} {[%emt 00:00:30]} 13. Bxd4 {[%clk 01:24:23]} {[%emt 00:00:05]} Bxd4
{[%clk 01:24:51]} {[%emt 00:00:56]} 14. Qxd4 {[%clk 01:24:47]} {[%emt
00:00:06]} Qa5 {[%clk 01:23:55]} {[%emt 00:01:26]} 15. h4 {[%clk 01:15:22]}
{[%emt 00:09:55]} Be6 {[%clk 01:22:48]} {[%emt 00:01:38]} 16. Rfd1 {[%clk
01:14:41]} {[%emt 00:01:10]} Rfc8 {[%clk 01:21:51]} {[%emt 00:01:26]} 17. a4
{[%clk 01:06:27]} {[%emt 00:08:44]} Rc5 {[%clk 01:19:24]} {[%emt 00:02:58]} 18.
Qd2 {[%clk 01:01:22]} {[%emt 00:05:35]} Qxd2 {[%clk 01:18:34]} {[%emt
00:01:20]} 19. Rxd2 {[%clk 01:01:51]} {[%emt 00:00:02]} b6 {[%clk 01:14:25]}
{[%emt 00:04:39]} 20. e3 {[%clk 01:01:19]} {[%emt 00:01:02]} Kg7 {[%clk
01:13:52]} {[%emt 00:01:03]} 21. Kf1 {[%clk 00:57:06]} {[%emt 00:04:45]} h6
{[%clk 01:13:01]} {[%emt 00:01:21]} 22. Ke2 {[%clk 00:55:21]} {[%emt 00:02:14]}
Rbc8 {[%clk 01:10:18]} {[%emt 00:03:13]} 23. Rad1 {[%clk 00:38:29]} {[%emt
00:17:21]} Bd7 {[%clk 01:03:55]} {[%emt 00:06:54]} 24. Rd5 {[%clk 00:36:55]}
{[%emt 00:02:04]} Kf6 {[%clk 00:59:50]} {[%emt 00:04:35]} 25. Kd3 {[%clk
00:27:02]} {[%emt 00:10:22]} R5c7 {[%clk 00:55:51]} {[%emt 00:04:31]} 26. e4
{[%clk 00:27:08]} {[%emt 00:00:24]} Be6 {[%clk 00:50:42]} {[%emt 00:05:38]} 27.
Rb5 {[%clk 00:27:27]} {[%emt 00:00:10]} Bg4 {[%clk 00:50:15]} {[%emt 00:00:57]}
28. Ra1 {[%clk 00:27:19]} {[%emt 00:00:39]} Bd7 {[%clk 00:50:29]} {[%emt
00:00:15]} 29. Rb4 {[%clk 00:27:33]} {[%emt 00:00:17]} Rc5 {[%clk 00:47:05]}
{[%emt 00:03:54]} 30. Ke3 {[%clk 00:26:07]} {[%emt 00:01:55]} Ra5 {[%clk
00:46:17]} {[%emt 00:01:19]} 31. Bf1 {[%clk 00:25:04]} {[%emt 00:01:33]} g5
{[%clk 00:46:20]} {[%emt 00:00:27]} 32. hxg5+ {[%clk 00:25:26]} {[%emt
00:00:09]} hxg5 {[%clk 00:46:40]} {[%emt 00:00:09]} 33. Bd3 {[%clk 00:25:44]}
{[%emt 00:00:12]} Rh8 {[%clk 00:46:47]} {[%emt 00:00:22]} 34. Rb5 {[%clk
00:22:45]} {[%emt 00:03:29]} Rb8 {[%clk 00:41:15]} {[%emt 00:06:02]} 35. b4
{[%clk 00:23:10]} {[%emt 00:00:06]} Rxb5 {[%clk 00:37:20]} {[%emt 00:04:25]} 36.
axb5 {[%clk 00:23:35]} {[%emt 00:00:05]} Rb7 {[%clk 00:37:38]} {[%emt
00:00:11]} 37. f4 {[%clk 00:22:04]} {[%emt 00:02:01]} gxf4+ {[%clk 00:37:37]}
{[%emt 00:00:32]} 38. gxf4 {[%clk 00:22:32]} {[%emt 00:00:01]} Rc7 {[%clk
00:37:47]} {[%emt 00:00:20]} 39. Rf1 {[%clk 00:20:11]} {[%emt 00:02:51]} Bc8
{[%clk 00:36:37]} {[%emt 00:01:40]} 40. Kd4 {[%clk 00:19:24]} {[%emt 00:01:16]}
Rd7 {[%clk 00:25:50]} {[%emt 00:11:17]} 41. Ke3 {[%clk 00:14:43]} {[%emt
00:05:11]} Rc7 {[%clk 00:24:12]} {[%emt 00:02:08]} 42. Rg1 {[%clk 00:12:06]}
{[%emt 00:03:07]} a6 {[%clk 00:15:49]} {[%emt 00:08:54]} 43. bxa6 {[%clk
00:10:35]} {[%emt 00:02:01]} Bxa6 {[%clk 00:16:16]} {[%emt 00:00:03]} 44. b5
{[%clk 00:10:40]} {[%emt 00:00:26]} Bc8 {[%clk 00:15:06]} {[%emt 00:01:39]} 45.
Rg8 {[%clk 00:10:41]} {[%emt 00:00:28]} Rc5 {[%clk 00:13:01]} {[%emt 00:02:34]}
46. Rd8 {[%clk 00:09:01]} {[%emt 00:02:10]} Be6 {[%clk 00:12:07]} {[%emt
00:01:25]} 47. Kd4 {[%clk 00:06:20]} {[%emt 00:03:11]} Bc8 {[%clk 00:07:37]}
{[%emt 00:05:00]} 48. e5+ {[%clk 00:04:48]} {[%emt 00:02:02]} dxe5+ {[%clk
00:07:27]} {[%emt 00:00:39]} 49. fxe5+ {[%clk 00:05:17]} Kg5 {[%clk 00:04:30]}
{[%emt 00:03:27]} 50. Rg8+ {[%clk 00:04:53]} {[%emt 00:00:54]} Kf4 {[%clk
00:04:33]} {[%emt 00:00:27]} 51. Rf8 {[%clk 00:05:23]} Be6 {[%clk 00:03:38]}
{[%emt 00:01:25]} 52. Rb8 {[%clk 00:05:40]} {[%emt 00:00:12]} Rc8 {[%clk
00:03:28]} {[%emt 00:00:40]} 53. Rxb6 {[%clk 00:05:31]} {[%emt 00:00:39]} Rd8+
{[%clk 00:03:57]} {[%emt 00:00:01]} 54. Kc3 {[%clk 00:05:54]} {[%emt 00:00:07]}
Kxe5 {[%clk 00:04:15]} {[%emt 00:00:11]} 55. c5 {[%clk 00:05:43]} {[%emt
00:00:42]} f5 {[%clk 00:03:40]} {[%emt 00:01:06]} 56. Rb7 {[%clk 00:05:54]}
{[%emt 00:00:19]} Re8 {[%clk 00:02:13]} {[%emt 00:01:57]} 57. Bc4 {[%clk
00:04:16]} {[%emt 00:02:07]} f4 {[%clk 00:01:13]} {[%emt 00:01:30]} 58. Ra7
{[%clk 00:03:55]} {[%emt 00:00:51]} f3 {[%clk 00:00:47]} {[%emt 00:00:55]} 59.
Ra1 {[%clk 00:04:22]} {[%emt 00:00:04]} Bh3 {[%clk 00:00:43]} {[%emt 00:00:33]}
60. b6 {[%clk 00:03:46]} {[%emt 00:01:07]} f2 {[%clk 00:00:52]} {[%emt
00:00:21]} 61. Kb4 {[%clk 00:02:05]} {[%emt 00:02:12]} Bg2 {[%clk 00:00:46]}
{[%emt 00:00:36]} 62. Bf1 {[%clk 00:01:59]} {[%emt 00:00:36]} Bd5 {[%clk
00:00:47]} {[%emt 00:00:29]} 63. Bb5 {[%clk 00:02:12]} {[%emt 00:00:17]} Rf8
{[%clk 00:00:56]} {[%emt 00:00:21]} 64. Rc1 {[%clk 00:01:25]} {[%emt 00:01:17]}
Rb8 {[%clk 00:00:34]} {[%emt 00:00:52]} 65. Rf1 {[%clk 00:01:21]} {[%emt
00:00:34]} Rf8 {[%clk 00:00:47]} {[%emt 00:00:18]} 66. c6 {[%clk 00:01:15]}
{[%emt 00:00:36]} Kd6 {[%clk 00:00:36]} {[%emt 00:00:40]} 67. Rd1 {[%clk
00:00:56]} {[%emt 00:00:50]} Rf4+ {[%clk 00:00:36]} {[%emt 00:00:30]} 68. Ka5
{[%clk 00:01:20]} {[%emt 00:00:06]} Kc5 {[%clk 00:00:35]} {[%emt 00:00:31]} 69.
Rxd5 {[%clk 00:01:04]} {[%emt 00:00:46]} Kxd5 {[%clk 00:00:57]} {[%emt
00:00:09]} 70. b7 {[%clk 00:01:11]} {[%emt 00:00:23]} f1=Q {[%clk 00:00:32]}
{[%emt 00:00:59]} 71. Bxf1 {[%clk 00:01:33]} {[%emt 00:00:08]} Rxf1 {[%clk
00:00:55]} {[%emt 00:00:07]} 72. c7 {[%clk 00:01:49]} {[%emt 00:00:14]} 1-0



[ePGN "0.1;DGT LiveChess/2.2.5"]

[Event "1er Tournoi de GM du Barreau de Paris"]
[Site "Paris, France"]
[Date "2019.12.20"]
[Round "8.1"]
[White "DAVID, Alberto"]
[Black "RAKOTOMAHARO, Fy Antenaina"]
[Result "1/2-1/2"]
[TimeControl "1h30 + 30s/cp"]
[WhiteTitle "GM"]
[BlackTitle "IM"]
[WhiteElo "2545"]
[BlackElo "2438"]

1. e4 {[%emt 00:14:47]} e5 {[%clk 01:15:05]} {[%emt 00:01:12]} 2. Nf3 {[%clk
01:31:09]} {[%emt 00:00:16]} Nc6 {[%clk 01:15:32]} {[%emt 00:00:04]} 3. Bb5
{[%clk 01:31:04]} {[%emt 00:00:35]} a6 {[%clk 01:15:58]} {[%emt 00:00:05]} 4.
Ba4 {[%clk 01:31:29]} {[%emt 00:00:05]} Nf6 {[%clk 01:14:34]} {[%emt 00:01:53]}
5. O-O {[%clk 01:31:30]} {[%emt 00:00:29]} Be7 {[%clk 01:14:58]} {[%emt
00:00:07]} 6. Re1 {[%clk 01:31:51]} {[%emt 00:00:09]} b5 {[%clk 01:15:24]}
{[%emt 00:00:04]} 7. Bb3 {[%clk 01:31:51]} {[%emt 00:00:31]} d6 {[%clk
01:15:29]} {[%emt 00:00:25]} 8. c3 {[%clk 01:32:14]} {[%emt 00:00:07]} O-O
{[%clk 01:15:54]} {[%emt 00:00:04]} 9. d4 {[%clk 01:31:41]} {[%emt 00:01:02]}
Bg4 {[%clk 01:14:42]} {[%emt 00:01:42]} 10. Be3 {[%clk 01:32:00]} {[%emt
00:00:11]} Bh5 {[%clk 01:15:08]} {[%emt 00:00:05]} 11. Nbd2 {[%clk 01:30:47]}
{[%emt 00:01:43]} exd4 {[%clk 01:05:29]} {[%emt 00:10:09]} 12. cxd4 {[%clk
01:30:30]} {[%emt 00:00:47]} Na5 {[%clk 01:05:55]} {[%emt 00:00:05]} 13. Bc2
{[%clk 01:23:24]} {[%emt 00:07:36]} c5 {[%clk 01:05:30]} {[%emt 00:00:55]} 14.
dxc5 {[%clk 01:11:08]} {[%emt 00:12:45]} dxc5 {[%clk 01:05:13]} {[%emt
00:00:47]} 15. Qb1 {[%clk 01:04:33]} {[%emt 00:07:04]} Bg6 {[%clk 00:58:40]}
{[%emt 00:07:04]} 16. Bg5 {[%clk 00:37:00]} {[%emt 00:28:03]} Nh5 {[%clk
00:33:58]} {[%emt 00:25:11]} 17. Be3 {[%clk 00:35:07]} {[%emt 00:02:23]} Nf6
{[%clk 00:34:16]} {[%emt 00:00:13]} 18. Bg5 {[%clk 00:33:40]} {[%emt 00:01:57]}
Nh5 {[%clk 00:34:31]} {[%emt 00:00:15]} 19. Be3 {[%clk 00:34:05]} {[%emt
00:00:05]} Nf6 {[%clk 00:34:56]} {[%emt 00:00:05]} 20. Bg5 1/2-1/2

[Event "1er Tournoi de GM du Barreau de Paris"]
[Site "Paris, France"]
[Date "2019.12.20"]
[Round "8.2"]
[White "LAMARD, Guillaume"]
[Black "SOCHACKI, Wojtek"]
[Result "1-0"]
[TimeControl "1h30 + 30s/cp"]
[WhiteTitle "FM"]
[BlackTitle "IM"]
[WhiteElo "2452"]
[BlackElo "2320"]

1. e4 {[%clk 01:30:56]} {[%emt 00:00:03]} e5 {[%clk 01:30:56]} {[%emt
00:00:04]} 2. Nf3 {[%clk 01:31:23]} {[%emt 00:00:03]} Nc6 {[%clk 01:31:23]}
{[%emt 00:00:03]} 3. Bb5 {[%clk 01:31:49]} {[%emt 00:00:04]} a6 {[%clk
01:31:47]} {[%emt 00:00:06]} 4. Ba4 {[%clk 01:32:16]} {[%emt 00:00:04]} Nf6
{[%clk 01:32:12]} {[%emt 00:00:04]} 5. Nc3 {[%clk 01:32:43]} {[%emt 00:00:03]}
b5 {[%clk 01:27:34]} {[%emt 00:05:08]} 6. Bb3 {[%clk 01:33:09]} {[%emt
00:00:05]} Bc5 {[%clk 01:27:58]} {[%emt 00:00:05]} 7. d3 {[%clk 01:32:19]}
{[%emt 00:01:20]} Bb7 {[%clk 01:23:20]} {[%emt 00:05:08]} 8. O-O {[%clk
01:31:16]} {[%emt 00:01:33]} d6 {[%clk 01:17:07]} {[%emt 00:06:43]} 9. a3
{[%clk 01:24:08]} {[%emt 00:07:39]} Nd4 {[%clk 01:15:28]} {[%emt 00:02:08]} 10.
Nxd4 {[%clk 01:24:22]} {[%emt 00:00:17]} Bxd4 {[%clk 01:15:06]} {[%emt
00:00:52]} 11. a4 {[%clk 01:17:48]} {[%emt 00:07:04]} b4 {[%clk 01:07:07]}
{[%emt 00:08:29]} 12. Ne2 {[%clk 01:18:12]} {[%emt 00:00:06]} Ba7 {[%clk
01:07:21]} {[%emt 00:00:15]} 13. a5 {[%clk 01:17:10]} {[%emt 00:01:33]} O-O
{[%clk 01:07:35]} {[%emt 00:00:15]} 14. Bd2 {[%clk 01:12:11]} {[%emt 00:05:29]}
Rb8 {[%clk 01:04:49]} {[%emt 00:03:15]} 15. Qe1 {[%clk 01:04:57]} {[%emt
00:07:45]} d5 {[%clk 01:04:52]} {[%emt 00:00:27]} 16. Ng3 {[%clk 00:54:10]}
{[%emt 00:11:17]} Re8 {[%clk 00:50:43]} {[%emt 00:14:39]} 17. Bg5 {[%clk
00:52:06]} {[%emt 00:02:34]} h6 {[%clk 00:28:58]} {[%emt 00:22:15]} 18. Bxf6
{[%clk 00:50:44]} {[%emt 00:01:53]} Qxf6 {[%clk 00:29:26]} {[%emt 00:00:01]} 19.
exd5 {[%clk 00:50:55]} {[%emt 00:00:19]} c6 {[%clk 00:29:14]} {[%emt 00:00:42]}
20. Ne4 {[%clk 00:45:52]} {[%emt 00:05:33]} Qg6 {[%clk 00:29:39]} {[%emt
00:00:05]} 21. d6 {[%clk 00:44:56]} {[%emt 00:01:26]} Kh8 {[%clk 00:24:23]}
{[%emt 00:05:47]} 22. d7 {[%clk 00:37:44]} {[%emt 00:07:42]} Re7 {[%clk
00:22:36]} {[%emt 00:02:16]} 23. Qxb4 {[%clk 00:37:55]} {[%emt 00:00:19]} c5
{[%clk 00:22:41]} {[%emt 00:00:25]} 24. Qxb7 {[%clk 00:38:11]} {[%emt
00:00:15]} 1-0

[Event "1er Tournoi de GM du Barreau de Paris"]
[Site "Paris, France"]
[Date "2019.12.20"]
[Round "8.3"]
[White "DI NICOLANTONIO, Lucas"]
[Black "GULIYEV, Namig"]
[Result "1-0"]
[TimeControl "1h30 + 30s/cp"]
[WhiteTitle "IM"]
[BlackTitle "GM"]
[WhiteElo "2408"]
[BlackElo "2548"]

1. e4 {[%clk 01:08:49]} {[%emt 00:22:10]} c5 {[%clk 01:30:54]} {[%emt
00:00:06]} 2. Nf3 {[%clk 01:09:09]} {[%emt 00:00:10]} d6 {[%clk 01:31:19]}
{[%emt 00:00:05]} 3. d4 {[%clk 01:09:22]} {[%emt 00:00:18]} cxd4 {[%clk
01:31:43]} {[%emt 00:00:06]} 4. Nxd4 {[%clk 01:09:46]} {[%emt 00:00:05]} Nf6
{[%clk 01:32:07]} {[%emt 00:00:06]} 5. Nc3 {[%clk 01:09:53]} {[%emt 00:00:23]}
a6 {[%clk 01:32:33]} {[%emt 00:00:04]} 6. Bg5 {[%clk 01:08:45]} {[%emt
00:01:37]} e6 {[%clk 01:29:03]} {[%emt 00:04:01]} 7. f4 {[%clk 01:08:53]}
{[%emt 00:00:22]} b5 {[%clk 01:28:55]} {[%emt 00:00:39]} 8. e5 {[%clk
00:59:38]} {[%emt 00:09:44]} dxe5 {[%clk 01:29:11]} {[%emt 00:00:14]} 9. fxe5
{[%clk 01:00:04]} {[%emt 00:00:04]} Qc7 {[%clk 01:29:38]} {[%emt 00:00:03]} 10.
exf6 {[%clk 01:00:28]} {[%emt 00:00:06]} Qe5+ {[%clk 01:30:06]} {[%emt
00:00:03]} 11. Be2 {[%clk 01:00:50]} {[%emt 00:00:07]} Qxg5 {[%clk 01:30:27]}
{[%emt 00:00:09]} 12. O-O {[%clk 01:00:17]} {[%emt 00:01:03]} Ra7 {[%clk
01:28:42]} {[%emt 00:02:16]} 13. Qd3 {[%clk 00:56:11]} {[%emt 00:04:35]} Rd7
{[%clk 01:28:11]} {[%emt 00:01:01]} 14. Ne4 {[%clk 00:55:07]} {[%emt 00:01:33]}
Qe5 {[%clk 01:27:25]} {[%emt 00:01:17]} 15. Nf3 {[%clk 00:48:59]} {[%emt
00:06:37]} Bc5+ {[%clk 01:19:43]} {[%emt 00:08:13]} 16. Kh1 {[%clk 00:47:15]}
{[%emt 00:02:13]} Qxb2 {[%clk 01:19:59]} {[%emt 00:00:15]} 17. Qb3 {[%clk
00:41:21]} {[%emt 00:06:24]} Qxb3 {[%clk 01:14:25]} {[%emt 00:06:04]} 18. cxb3
{[%clk 00:35:20]} {[%emt 00:06:31]} Bf8 {[%clk 01:14:41]} {[%emt 00:00:14]} 19.
Rac1 {[%clk 00:33:48]} {[%emt 00:02:02]} Rd8 {[%clk 01:09:35]} {[%emt
00:05:37]} 20. Rc7 {[%clk 00:25:49]} {[%emt 00:08:28]} Rg8 {[%clk 01:07:19]}
{[%emt 00:02:46]} 21. Ne5 {[%clk 00:21:59]} {[%emt 00:04:20]} Bd7 {[%clk
01:05:56]} {[%emt 00:01:54]} 22. Nxf7 {[%clk 00:11:34]} {[%emt 00:10:54]} Rc8
{[%clk 01:00:40]} {[%emt 00:05:47]} 23. Ned6+ {[%clk 00:10:57]} {[%emt
00:01:06]} Bxd6 {[%clk 01:01:04]} {[%emt 00:00:06]} 24. Nxd6+ {[%clk 00:11:24]}
{[%emt 00:00:03]} Kd8 {[%clk 01:01:30]} {[%emt 00:00:05]} 25. Nxc8 {[%clk
00:11:39]} {[%emt 00:00:15]} Bxc8 {[%clk 01:01:17]} {[%emt 00:00:43]} 26. Rxg7
{[%clk 00:11:35]} {[%emt 00:00:33]} Rf8 {[%clk 01:01:44]} {[%emt 00:00:04]} 27.
Bg4 {[%clk 00:10:20]} {[%emt 00:01:45]} 1-0

[Event "1er Tournoi de GM du Barreau de Paris"]
[Site "Paris, France"]
[Date "2019.12.20"]
[Round "8.4"]
[White "MAURIZZI, Marc Andria"]
[Black "FEDORCHUK, Sergey"]
[Result "1/2-1/2"]
[TimeControl "1h30 + 30s/cp"]
[WhiteTitle "IM"]
[BlackTitle "GM"]
[WhiteElo "2404"]
[BlackElo "2636"]

1. e4 {[%clk 01:30:58]} {[%emt 00:00:02]} c5 {[%clk 01:29:46]} {[%emt
00:01:06]} 2. Nf3 {[%clk 01:31:20]} {[%emt 00:00:15]} e6 {[%clk 01:28:26]}
{[%emt 00:01:50]} 3. d4 {[%clk 01:31:35]} {[%emt 00:00:15]} cxd4 {[%clk
01:28:46]} {[%emt 00:00:10]} 4. Nxd4 {[%clk 01:31:58]} {[%emt 00:00:07]} Nc6
{[%clk 01:26:28]} {[%emt 00:02:48]} 5. Nc3 {[%clk 01:32:04]} {[%emt 00:00:24]}
Nf6 {[%clk 01:25:34]} {[%emt 00:01:24]} 6. Nxc6 {[%clk 01:28:43]} {[%emt
00:03:52]} bxc6 {[%clk 01:24:03]} {[%emt 00:02:01]} 7. e5 {[%clk 01:29:08]}
{[%emt 00:00:05]} Nd5 {[%clk 01:24:19]} {[%emt 00:00:13]} 8. Ne4 {[%clk
01:29:27]} {[%emt 00:00:10]} Bb7 {[%clk 01:22:34]} {[%emt 00:02:16]} 9. c4
{[%clk 01:19:06]} {[%emt 00:10:52]} Nb4 {[%clk 01:19:03]} {[%emt 00:04:01]} 10.
Bd2 {[%clk 00:57:14]} {[%emt 00:22:23]} c5 {[%clk 01:10:09]} {[%emt 00:09:23]}
11. Bxb4 {[%clk 00:56:03]} {[%emt 00:01:42]} cxb4 {[%clk 01:07:21]} {[%emt
00:03:18]} 12. Nd6+ {[%clk 00:56:26]} {[%emt 00:00:06]} Bxd6 {[%clk 01:07:45]}
{[%emt 00:00:05]} 13. Qxd6 {[%clk 00:56:54]} {[%emt 00:00:03]} Qb6 {[%clk
01:05:02]} {[%emt 00:03:13]} 14. O-O-O {[%clk 00:56:15]} {[%emt 00:01:08]} Qxd6
{[%clk 01:04:20]} {[%emt 00:01:13]} 15. Rxd6 {[%clk 00:56:41]} {[%emt
00:00:04]} Rc8 {[%clk 00:59:23]} {[%emt 00:05:26]} 16. Bd3 {[%clk 00:43:49]}
{[%emt 00:13:23]} Ke7 {[%clk 00:47:46]} {[%emt 00:12:07]} 17. Rd4 {[%clk
00:33:30]} {[%emt 00:10:50]} Rc5 {[%clk 00:35:26]} {[%emt 00:12:49]} 18. Re1
{[%clk 00:32:45]} {[%emt 00:01:15]} a5 {[%clk 00:22:13]} {[%emt 00:13:44]} 19.
Kd2 {[%clk 00:29:47]} {[%emt 00:03:28]} g5 {[%clk 00:12:41]} {[%emt 00:10:01]}
20. g3 {[%clk 00:19:01]} {[%emt 00:11:16]} Bf3 {[%emt 00:06:47]} 1/2-1/2